fUST/lending_fUST_20240924
["ID","MTS","AMOUNT","RATE_DAILY","PERIOD"]
[339026202,1727136640945,-500.0,0.00033013,30]
[339026203,1727136640954,-500.0,0.00033013,30]
[339026204,1727136640963,-3000.0,0.0003302,14]
[339026205,1727136640971,-3000.0,0.0003303,14]
[339026206,1727136640981,-3000.0,0.0003304,14]
[339026208,1727136640990,-3000.0,0.0003305,14]
[339026209,1727136640999,-1306.49938324,0.0003305,2]
[339026210,1727136641007,-3000.0,0.0003306,14]
[339026211,1727136641017,-500.0,0.00033069,30]
[339026212,1727136641026,-1224.24822343,0.0003307,14]
[339026213,1727136641045,-1129.34726464,0.0003307,14]
[339026214,1727136641071,-646.40451193,0.0003307,14]
[339026215,1727136641080,-3000.0,0.0003308,14]
[339026216,1727136641089,-696.156052,0.0003308,14]
[339026217,1727136641098,-696.156052,0.0003308,14]
[339026218,1727136641107,-151.0,0.0003308,14]
[339026219,1727136641119,-151.0,0.0003308,14]
[339026220,1727136641129,-151.0,0.0003308,14]
[339026221,1727136641138,-174.879799,0.0003308,14]
[339026222,1727136641149,-174.879799,0.0003308,14]
[339026223,1727136641158,-8297.832314,0.0003308,14]
[339026224,1727136641167,-8297.832314,0.0003308,14]
[339026225,1727136641176,-470.96592,0.0003308,14]
[339026226,1727136641185,-470.96592,0.0003308,14]
[339026227,1727136641194,-212.1,0.00033085,6]
[339026228,1727136641203,-3000.0,0.0003309,14]
[339026229,1727136641212,-3000.0,0.000331,14]
[339026230,1727136641221,-3000.0,0.0003311,14]
[339026231,1727136641230,-151.0,0.0003311,14]
[339026232,1727136641239,-234.372546,0.0003311,14]
[339026233,1727136641248,-151.0,0.0003311,14]
[339026234,1727136641257,-151.0,0.0003311,14]
[339026235,1727136641266,-151.0,0.0003311,14]
[339026236,1727136641275,-740.655466,0.0003311,14]
[339026237,1727136641284,-740.655466,0.0003311,14]
[339026238,1727136641293,-3000.0,0.0003312,14]
[339026239,1727136641302,-3000.0,0.0003313,14]
[339026240,1727136641311,-434.61695001,0.00033139,30]
[339026241,1727136641320,-3000.0,0.0003314,14]
[339026242,1727136641330,-557.730614,0.0003314,14]
[339026243,1727136641338,-557.730614,0.0003314,14]
[339026244,1727136641347,-151.0,0.0003314,14]
[339026245,1727136641356,-188.525817,0.0003314,14]
[339026246,1727136641365,-188.525817,0.0003314,14]
[339026247,1727136641374,-246.11,0.0003315,30]
[339026248,1727136641385,-500.0,0.0003315,30]
[339026249,1727136641394,-500.0,0.0003315,30]
[339026250,1727136641403,-500.0,0.0003315,30]
[339026251,1727136641413,-500.0,0.0003315,7]
[339026252,1727136641422,-500.0,0.0003315,30]
[339026253,1727136641431,-500.0,0.0003315,30]
[339026254,1727136641441,-4405.09046,0.0003315,14]
[339026255,1727136641451,-151.0,0.0003315,14]
[339026256,1727136641460,-274.59936,0.0003315,14]
[339026257,1727136641469,-500.0,0.0003315,30]
[339026258,1727136641478,-500.0,0.0003315,30]
[339026259,1727136641487,-2033.795754,0.0003315,14]
[339026260,1727136641497,-151.0,0.0003315,14]
[339026261,1727136641506,-2033.795754,0.0003315,14]
[339026262,1727136641515,-151.0,0.0003315,14]
[339026263,1727136641524,-151.0,0.0003315,14]
[339026264,1727136641533,-6443.97,0.0003315,18]
[339026265,1727136641542,-500.0,0.0003315,21]
[339026266,1727136641551,-500.0,0.0003315,30]
[339026267,1727136641561,-500.0,0.0003315,30]
[339026268,1727136641570,-446.941687,0.00033165,2]
[339026269,1727136641578,-246.11,0.00033287,30]
[339026270,1727136641587,-500.0,0.00033287,30]
[339026271,1727136641604,-500.0,0.00033287,30]
[339026272,1727136641616,-500.0,0.00033287,30]
[339026273,1727136641626,-500.0,0.00033287,7]
[339026274,1727136641644,-500.0,0.00033287,30]
[339026275,1727136641653,-500.0,0.00033287,30]
[339026276,1727136641662,-500.0,0.00033287,30]
[339026277,1727136641672,-500.0,0.00033287,30]
[339026278,1727136641681,-6443.97,0.00033287,18]
[339026279,1727136641691,-500.0,0.00033287,21]
[339026280,1727136641700,-500.0,0.00033287,30]
[339026281,1727136641709,-500.0,0.00033287,30]
[339026282,1727136641719,-246.11,0.00033424,30]
[339026283,1727136641729,-500.0,0.00033424,30]
[339026284,1727136641739,-500.0,0.00033424,30]
[339026285,1727136641749,-290.25,0.00033424,7]
[339026286,1727136641758,-500.0,0.00033424,30]
[339026287,1727136641768,-222.02798911,0.00033424,30]
[339026288,1727136641777,-500.0,0.00033424,30]
[339026289,1727136641787,-6443.97,0.00033424,18]
[339026290,1727136641798,-500.0,0.00033424,21]
[339026291,1727136641808,-500.0,0.00033424,30]
[339026292,1727136641817,-500.0,0.00033424,30]
[339026293,1727136641827,-246.11,0.00033561,30]
[339026294,1727136641836,-500.0,0.00033561,30]
[339026295,1727136641847,-500.0,0.00033561,30]
[339026296,1727136641857,-537.84465568,0.00033561,30]
[339026297,1727136641866,-500.0,0.00033561,30]
[339026298,1727136641875,-6443.97,0.00033561,18]
[339026299,1727136641889,-500.0,0.00033561,21]
[339026300,1727136641898,-500.0,0.00033561,30]
[339026301,1727136641908,-500.0,0.00033561,30]
[339026302,1727136641917,-955.98,0.000336,2]
[339026303,1727136641926,-308.96,0.000336,14]
[339026304,1727136641936,-1139.26,0.000336,14]
[339026305,1727136641946,-4262.65,0.000336,14]
[339026306,1727136641955,-1743.16,0.000336,14]
[339026307,1727136641965,-246.11,0.00033698,30]
[339026308,1727136641974,-500.0,0.00033698,30]
[339026309,1727136641983,-500.0,0.00033698,30]
[339026310,1727136641993,-500.0,0.00033698,30]
[339026311,1727136642003,-6443.97,0.00033698,18]
[339026312,1727136642013,-395.52,0.00033698,21]
[339026313,1727136642023,-500.0,0.00033698,120]
[339026314,1727136642032,-500.0,0.00033698,30]
[339026315,1727136642041,-500.0,0.00033698,30]
[339026316,1727136642051,-249.5725,0.000337,120]
[339026317,1727136642061,-246.11,0.00033835,30]
[339026318,1727136642070,-445.02274658,0.00033835,30]
[339026319,1727136642080,-500.0,0.00033835,30]
[339026320,1727136642090,-220.03161506,0.00033835,30]
[339026321,1727136642099,-6443.97,0.00033835,18]
[339026322,1727136642109,-696.156052,0.00033835,14]
[339026323,1727136642118,-696.156052,0.00033835,14]
[339026324,1727136642130,-151.0,0.00033835,14]
[339026325,1727136642140,-151.0,0.00033835,14]
[339026326,1727136642152,-151.0,0.00033835,14]
[339026327,1727136642162,-174.879799,0.00033835,14]
[339026328,1727136642171,-174.879799,0.00033835,14]
[339026329,1727136642180,-8297.832314,0.00033835,14]
[339026330,1727136642189,-8297.832314,0.00033835,14]
[339026331,1727136642198,-500.0,0.00033835,30]
[339026332,1727136642207,-470.96592,0.00033835,14]
[339026333,1727136642218,-500.0,0.00033835,30]
[339026334,1727136642227,-470.96592,0.00033835,14]
[339026335,1727136642237,-151.0,0.00033835,14]
[339026336,1727136642246,-246.11,0.00033972,30]
[339026337,1727136642255,-500.0,0.00033972,30]
[339026338,1727136642265,-5860.28569865,0.00033972,18]
[339026354,1727136646451,-17.871562,0.00027,120]
[339026355,1727136646477,-182.128438,0.00027,120]
[339026356,1727136646487,-249.5725,0.000333,120]
[339026357,1727136646497,-583.68430135,0.00033972,18]
[339026358,1727136646507,-500.0,0.00033972,30]
[339026359,1727136646517,-500.0,0.00033972,30]
[339026360,1727136646527,-227.4846764,0.00034033,2]
[339026369,1727137630171,-957.86342356,0.00025,30]
[339026370,1727137630192,-249.5725,0.00027,120]
[339026371,1727137630213,-281.653946,0.00027275,2]
[339026372,1727137630233,-424.594603,0.00027397,2]
[339026373,1727137630254,-970.89366308,0.0002743,2]
[339026374,1727137640274,-826.22993057,0.00026669,2]
[339026375,1727137649111,-259.12797926,0.00026669,2]
[339026376,1727137746147,-500.0,0.00024,2]
[339026377,1727137755140,-856.29181007,0.00026669,2]
[339026378,1727137760098,-495.5301063,0.00026669,2]
[339026379,1727137760118,-160.223528,0.00027128,2]
[339026380,1727137760140,-500.0,0.00027429,2]
[339026381,1727137760162,-395.9372748,0.00027429,2]
[339026383,1727137769143,-104.0627252,0.00027429,2]
[339026385,1727137769165,-422.54358721,0.00027429,2]
[339026386,1727137769186,-9174.38330163,0.0002743,2]
[339026387,1727137772127,-7441.94444812,0.0002743,2]
[339026419,1727137832365,-4428.89610944,0.0002743,2]
[339026445,1727137838654,-19.52209515,0.0002743,2]
[339026454,1727137840398,-2864.36038258,0.0002743,2]
[339026455,1727137840408,-354.95580146,0.00028825,2]
[339026456,1727137840417,-321.217322,0.00029483,2]
[339026457,1727137840426,-192.8,0.00029576,4]
[339026458,1727137840436,-163.097065,0.00029661,2]
[339026459,1727137840445,-163.097065,0.00029758,2]
[339026460,1727137840453,-163.097065,0.00029855,2]
[339026461,1727137840463,-163.097065,0.00029951,2]
[339026462,1727137840472,-253.0,0.0003,2]
[339026463,1727137840482,-163.097065,0.00030048,2]
[339026464,1727137840491,-163.097065,0.00030144,2]
[339026465,1727137840501,-182.03665,0.00030149,2]
[339026466,1727137840510,-321.217322,0.00030168,2]
[339026467,1727137840520,-163.097065,0.00030241,2]
[339026468,1727137840530,-163.097065,0.00030338,2]
[339026469,1727137840539,-253.0,0.00030411,2]
[339026470,1727137840548,-163.097065,0.00030434,2]
[339026471,1727137840557,-163.097065,0.00030531,2]
[339026472,1727137840567,-163.097065,0.00030627,2]
[339026473,1727137840583,-192.8,0.00030678,5]
[339026474,1727137840596,-354.9558014,0.00030693,2]
[339026475,1727137840606,-163.097065,0.00030724,2]
[339026476,1727137840616,-163.097065,0.00030821,2]
[339026477,1727137840626,-321.217322,0.00030853,2]
[339026478,1727137840635,-163.097065,0.00030917,2]
[339026479,1727137840645,-163.097065,0.00031014,2]
[339026480,1727137840654,-163.097065,0.0003111,2]
[339026481,1727137840664,-163.097065,0.00031207,2]
[339026482,1727137840674,-253.0,0.00031644,2]
[339026483,1727137840683,-192.8,0.00031779,6]
[339026484,1727137840692,-354.9558014,0.00032561,2]
[339026485,1727137840702,-1000.0,0.00032776,2]
[339026486,1727137840712,-291.59,0.00032856,3]
[339026487,1727137840721,-500.0,0.00032865,2]
[339026488,1727137840731,-479.18747343,0.00032865,2]
[339026489,1727137840740,-158.06039858,0.00032865,2]
[339026490,1727137840750,-120031.976756,0.00032866,4]
[339026491,1727137840759,-4101.33418352,0.00032866,5]
[339026492,1727137840768,-500.0,0.00032873,5]
[339026493,1727137840778,-500.0,0.00032873,5]
[339026494,1727137840787,-500.0,0.00032873,5]
[339026495,1727137840797,-500.0,0.00032876,30]
[339026496,1727137840806,-573.63,0.00032876,30]
[339026497,1727137840815,-500.0,0.00032876,30]
[339026498,1727137840825,-500.0,0.00032876,30]
[339026499,1727137840834,-576.44003261,0.00032876,30]
[339026500,1727137840844,-500.0,0.00032876,30]
[339026501,1727137840853,-500.0,0.00032876,30]
[339026502,1727137840863,-500.0,0.00032876,30]
[339026503,1727137840872,-502.58903229,0.00032876,30]
[339026504,1727137840882,-500.0,0.00032876,30]
[339026505,1727137840891,-500.0,0.00032876,30]
[339026506,1727137840900,-500.0,0.00032876,30]
[339026507,1727137840910,-503.3653671,0.00032876,30]
[339026508,1727137840919,-500.0,0.00032876,30]
[339026509,1727137840930,-576.29655146,0.00032876,30]
[339026510,1727137840940,-150.0,0.00032876,30]
[339026511,1727137840949,-500.0,0.00032876,30]
[339026512,1727137840959,-500.0,0.00032876,30]
[339026513,1727137840969,-500.0,0.00032876,30]
[339026514,1727137840979,-500.0,0.00032876,30]
[339026515,1727137840988,-500.0,0.00032876,30]
[339026516,1727137840997,-500.0,0.00032876,7]
[339026517,1727137841006,-500.0,0.00032876,30]
[339026518,1727137841015,-605.89959351,0.00032876,30]
[339026519,1727137841025,-500.0,0.00032876,30]
[339026520,1727137841034,-500.0,0.00032876,30]
[339026521,1727137841043,-500.0,0.00032876,30]
[339026522,1727137841053,-500.0,0.00032876,30]
[339026523,1727137841062,-500.0,0.00032876,30]
[339026524,1727137841071,-508.13,0.00032876,30]
[339026525,1727137841081,-500.0,0.00032876,30]
[339026526,1727137841090,-500.0,0.00032876,30]
[339026527,1727137841099,-506.88531272,0.00032876,30]
[339026528,1727137841108,-500.0,0.00032876,30]
[339026529,1727137841118,-500.0,0.00032876,30]
[339026530,1727137841127,-500.0,0.00032876,30]
[339026531,1727137841136,-500.0,0.00032876,30]
[339026532,1727137841145,-241.08007485,0.00032876,30]
[339026533,1727137841154,-500.0,0.00032876,30]
[339026534,1727137841164,-500.0,0.00032876,30]
[339026535,1727137841173,-500.0,0.00032876,30]
[339026536,1727137841183,-500.0,0.00032876,30]
[339026537,1727137841192,-500.0,0.00032876,30]
[339026538,1727137841206,-500.0,0.00032876,30]
[339026539,1727137841215,-336.87526578,0.00032876,30]
[339026540,1727137841224,-500.0,0.00032876,30]
[339026541,1727137841234,-500.0,0.00032876,30]
[339026542,1727137841243,-500.0,0.00032876,30]
[339026543,1727137841253,-500.0,0.00032876,30]
[339026544,1727137841262,-519.41886539,0.00032876,30]
[339026545,1727137841272,-500.0,0.00032876,30]
[339026546,1727137841282,-500.0,0.00032876,30]
[339026547,1727137841291,-500.0,0.00032876,30]
[339026548,1727137841301,-495.42636822,0.00032876,30]
[339026549,1727137841310,-300.27298561,0.00032876,30]
[339026580,1727138825115,-178.18144189,0.00027281,2]
[339026582,1727138829103,-387.4778215,0.00027281,2]
[339026583,1727138841093,-175.60550945,0.00027226,2]
[339026584,1727138841113,-584.40773375,0.00027281,2]
[339026586,1727138854139,-1849.93300286,0.00027281,2]
[339026587,1727138854160,-426.88812,0.00027397,2]
[339026588,1727138854180,-300.0,0.00028503,2]
[339026589,1727138854200,-300.0,0.00028503,2]
[339026590,1727138854222,-346.09749808,0.00028503,2]
[339026591,1727138877817,156.1,0.00022001,2]
[339026594,1727138945102,-300.0,0.00027099,2]
[339026595,1727138945124,-500.0,0.000271,2]
[339026596,1727138945146,-500.0,0.000271,2]
[339026597,1727138945168,-500.0,0.000271,2]
[339026598,1727138945189,-147.29477196,0.000271,2]
[339026599,1727138969119,-447.85368375,0.000271,2]
[339026600,1727138969143,-172.278057,0.00027404,2]
[339026601,1727138969165,-172.278057,0.00027563,2]
[339026602,1727138969186,-70.82876741,0.00027604,2]
[339026603,1727138973114,-1147.69270929,0.00027604,2]
[339026604,1727138973137,-172.278057,0.00027722,2]
[339026605,1727138973160,-172.278057,0.0002788,2]
[339026606,1727138973181,-172.278057,0.00028039,2]
[339026607,1727138973203,-172.278057,0.00028198,2]
[339026608,1727138973224,-172.278057,0.00028356,2]
[339026609,1727138973248,-153.90250192,0.00028503,2]
[339026610,1727138973271,-500.0,0.00028503,2]
[339026611,1727138973293,-361.52121537,0.00028504,2]
[339026636,1727139032599,-4186.22346614,0.00027476,2]
[339026637,1727139032655,-73.44556043,0.00027476,2]
[339026696,1727139038894,-2529.04505863,0.00027476,2]
[339026697,1727139038904,-488.48185859,0.00028415,2]
[339026698,1727139038998,-241.47567449,0.00028415,2]
[339026699,1727139039008,-300.0,0.00028503,2]
[339026700,1727139039018,-24538.47878463,0.00028504,2]
[339026701,1727139039029,-172.278057,0.00028515,2]
[339026702,1727139039038,-446.7762197,0.00028554,2]
[339026703,1727139039048,-500.0,0.000286,2]
[339026704,1727139039057,-250.0,0.00028644,2]
[339026705,1727139039067,-294.075428,0.00028644,2]
[339026706,1727139039077,-772.8955268,0.00028649,2]
[339026707,1727139039087,-172.278057,0.00028674,2]
[339026708,1727139039098,-172.278057,0.00028832,2]
[339026709,1727139039107,-157.3,0.00029495,4]
[339026710,1727139039117,-157.3,0.00030604,5]
[339026711,1727139039127,-998.90120867,0.00031405,2]
[339026712,1727139039138,-751.10088558,0.00031565,2]
[339026713,1727139039148,-157.3,0.00031713,6]
[339026714,1727139039157,-175.08073083,0.00032452,120]
[339026715,1727139039167,-218.315327,0.00032766,2]
[339026716,1727139039177,-1000.0,0.00032776,2]
[339026717,1727139039186,-1447.06333846,0.00032776,2]
[339026718,1727139039196,-157.3,0.00032822,6]
[339026719,1727139039206,-500.0,0.00032855,2]
[339026720,1727139039215,-185.4312314,0.00032855,2]
[339026721,1727139039225,-112384.722928,0.00032856,4]
[339026722,1727139039235,-6299.91759356,0.00032856,5]
[339026723,1727139039244,-683.10106963,0.00032865,15]
[339026724,1727139039254,-2573.96946831,0.00032865,15]
[339026725,1727139039265,-224769.445856,0.00032866,4]
[339026726,1727139039275,-12599.8351871,0.00032866,5]
[339026727,1727139039285,-500.0,0.00032873,5]
[339026728,1727139039294,-500.0,0.00032873,5]
[339026729,1727139039303,-500.0,0.00032873,5]
[339026730,1727139039313,-500.0,0.00032873,5]
[339026731,1727139039322,-586.66743907,0.00032875,2]
[339026732,1727139039333,-500.0,0.00032876,30]
[339026733,1727139039342,-500.0,0.00032876,30]
[339026734,1727139039352,-500.0,0.00032876,30]
[339026735,1727139039361,-464.33064808,0.00032876,30]
[339026736,1727139039371,-501.18471424,0.00032876,30]
[339026737,1727139039382,-503.29681429,0.00032876,30]
[339026738,1727139039397,-498.10133189,0.00032876,30]
[339026739,1727139039407,-500.0,0.00032876,30]
[339026740,1727139039418,-512.54300089,0.00032876,30]
[339026741,1727139039427,-500.0,0.00032876,30]
[339026742,1727139039437,-500.0,0.00032876,30]
[339026743,1727139039447,-500.0,0.00032876,30]
[339026744,1727139039458,-500.0,0.00032876,30]
[339026745,1727139039467,-500.0,0.00032876,30]
[339026746,1727139039477,-500.0,0.00032876,30]
[339026747,1727139039486,-363.36796794,0.00032876,30]
[339026748,1727139039496,-500.0,0.00032876,30]
[339026749,1727139039506,-315.25642931,0.00032876,30]
[339026750,1727139039516,-501.92589582,0.00032876,30]
[339026751,1727139039529,-636.31315831,0.00032876,30]
[339026752,1727139039538,-500.0,0.00032876,30]
[339026753,1727139039548,-500.0,0.00032876,30]
[339026754,1727139039557,-500.0,0.00032876,30]
[339026755,1727139039567,-500.0,0.00032876,30]
[339026756,1727139039577,-493.26208596,0.00032876,30]
[339026757,1727139039587,-500.0,0.00032876,30]
[339026758,1727139039597,-500.0,0.00032876,30]
[339026759,1727139039607,-495.42636822,0.00032876,30]
[339026760,1727139039617,-500.0,0.00032876,30]
[339026761,1727139039626,-500.0,0.00032876,30]
[339026762,1727139039641,-308.76,0.00032876,30]
[339026763,1727139039650,-500.0,0.00032876,30]
[339026764,1727139039660,-500.0,0.00032876,30]
[339026765,1727139039669,-500.0,0.00032876,30]
[339026766,1727139039679,-500.0,0.00032876,30]
[339026767,1727139039688,-500.0,0.00032876,30]
[339026768,1727139039698,-500.0,0.00032876,30]
[339026769,1727139039707,-500.0,0.00032876,30]
[339026770,1727139039717,-434.61695001,0.00032876,30]
[339026771,1727139039727,-500.0,0.00032876,30]
[339026772,1727139039737,-544.77912932,0.00032876,30]
[339026773,1727139039746,-500.0,0.00032876,30]
[339026774,1727139039758,-500.0,0.00032876,30]
[339026775,1727139039767,-542.33244785,0.00032876,30]
[339026776,1727139039777,-500.0,0.00032876,30]
[339026777,1727139039787,-179.84612297,0.00032876,30]
[339026778,1727139039796,-500.0,0.00032876,30]
[339026779,1727139039806,-500.0,0.00032876,30]
[339026780,1727139039815,-500.0,0.00032876,120]
[339026781,1727139039825,-500.0,0.00032876,30]
[339026782,1727139039835,-500.0,0.00032876,30]
[339026783,1727139039845,-500.0,0.00032876,30]
[339026784,1727139039854,-500.0,0.00032876,30]
[339026785,1727139039863,-500.0,0.00032876,10]
[339026786,1727139039873,-500.0,0.00032876,30]
[339026787,1727139039885,-506.63179636,0.00032876,30]
[339026788,1727139039894,-500.0,0.00032876,30]
[339026789,1727139039904,-500.0,0.00032876,30]
[339026790,1727139039914,-500.0,0.00032876,30]
[339026791,1727139039924,-500.0,0.00032876,30]
[339026792,1727139039934,-500.0,0.00032876,30]
[339026793,1727139039943,-500.0,0.00032876,30]
[339026794,1727139040097,-500.0,0.00032876,30]
[339026795,1727139040109,-315.30015793,0.00032876,30]
[339026796,1727139040119,-500.0,0.00032876,30]
[339026797,1727139040128,-601.82720782,0.00032876,30]
[339026798,1727139040139,-500.0,0.00032876,30]
[339026799,1727139040150,-500.0,0.00032876,30]
[339026800,1727139040160,-500.0,0.00032876,30]
[339026801,1727139040170,-500.0,0.00032876,30]
[339026803,1727139040179,-500.0,0.00032876,30]
[339026805,1727139040188,-500.0,0.00032876,30]
[339026806,1727139040198,-355.29676515,0.00032876,30]
[339026807,1727139040207,-500.0,0.00032876,30]
[339026808,1727139040216,-500.0,0.00032876,30]
[339026809,1727139040226,-265.2424507,0.00032876,30]
[339026810,1727139040236,-500.0,0.00032876,30]
[339026811,1727139040245,-500.0,0.00032876,30]
[339026812,1727139040254,-500.0,0.00032876,30]
[339026813,1727139040264,-500.0,0.00032876,30]
[339026814,1727139040273,-500.0,0.00032876,30]
[339026815,1727139040283,-500.0,0.00032876,30]
[339026816,1727139040292,-500.0,0.00032876,30]
[339026817,1727139040302,-500.0,0.00032876,30]
[339026818,1727139040311,-500.0,0.00032876,30]
[339026819,1727139040321,-500.0,0.00032876,30]
[339026820,1727139040330,-500.0,0.00032876,30]
[339026821,1727139040340,-500.0,0.00032876,30]
[339026822,1727139040349,-500.0,0.00032876,30]
[339026823,1727139040359,-500.0,0.00032876,30]
[339026824,1727139040369,-500.0,0.00032876,30]
[339026825,1727139040379,-500.98635114,0.00032876,30]
[339026826,1727139040390,-200.0,0.00032876,30]
[339026828,1727139040399,-500.0,0.00032876,30]
[339026830,1727139040408,-500.0,0.00032876,30]
[339026831,1727139040418,-503.0,0.00032876,30]
[339026832,1727139040427,-500.0,0.00032876,30]
[339026833,1727139040437,-500.0,0.00032876,30]
[339026834,1727139040447,-500.0,0.00032876,30]
[339026836,1727139040456,-500.0,0.00032876,30]
[339026838,1727139040466,-500.0,0.00032876,30]
[339026839,1727139040475,-500.0,0.00032876,2]
[339026840,1727139040485,-588.87114356,0.00032876,30]
[339026841,1727139040495,-500.0,0.00032876,30]
[339026842,1727139040504,-501.34478449,0.00032876,30]
[339026843,1727139040514,-500.0,0.00032876,30]
[339026844,1727139040524,-274.16380275,0.00032876,30]
[339026845,1727139040534,-500.0,0.00032876,30]
[339026846,1727139040544,-500.0,0.00032876,30]
[339026847,1727139040553,-500.0,0.00032876,30]
[339026848,1727139040563,-500.0,0.00032876,30]
[339026849,1727139040572,-500.0,0.00032876,30]
[339026850,1727139040582,-500.0,0.00032876,30]
[339026851,1727139040591,-500.0,0.00032876,30]
[339026852,1727139040600,-500.0,0.00032876,30]
[339026853,1727139040610,-500.0,0.00032876,30]
[339026854,1727139040620,-500.0,0.00032876,2]
[339026855,1727139040630,-500.0,0.00032876,30]
[339026856,1727139040644,-500.0,0.00032876,30]
[339026857,1727139040654,-500.0,0.00032876,30]
[339026858,1727139040663,-500.0,0.00032876,30]
[339026859,1727139040673,-500.0,0.00032876,30]
[339026860,1727139040683,-500.0,0.00032876,30]
[339026861,1727139040692,-500.0,0.00032876,30]
[339026862,1727139040701,-500.0,0.00032876,30]
[339026863,1727139040711,-500.0,0.00032876,30]
[339026864,1727139040720,-500.0,0.00032876,30]
[339026865,1727139040730,-500.0,0.00032876,30]
[339026866,1727139040739,-500.0,0.00032876,30]
[339026867,1727139040748,-500.0,0.00032876,30]
[339026868,1727139040758,-500.0,0.00032876,30]
[339026869,1727139040767,-505.09169736,0.00032876,30]
[339026870,1727139040778,-500.0,0.00032876,30]
[339026871,1727139040788,-500.0,0.00032876,30]
[339026872,1727139040797,-500.0,0.00032876,7]
[339026873,1727139040807,-547.13,0.00032876,30]
[339026874,1727139040816,-500.0,0.00032876,30]
[339026875,1727139040826,-500.0,0.00032876,30]
[339026876,1727139040847,-500.0,0.00032876,30]
[339026877,1727139040857,-500.0,0.00032876,30]
[339026879,1727139040867,-500.0,0.00032876,120]
[339026880,1727139040876,-500.0,0.00032876,30]
[339026881,1727139040888,-500.0,0.00032876,30]
[339026882,1727139040897,-500.0,0.00032876,30]
[339026883,1727139040908,-567.52,0.00032876,30]
[339026884,1727139040917,-500.0,0.00032876,30]
[339026885,1727139040927,-373.27,0.00032876,30]
[339026886,1727139040938,-500.0,0.00032876,30]
[339026887,1727139040948,-500.0,0.00032876,30]
[339026888,1727139040958,-500.0,0.00032876,30]
[339026889,1727139040968,-500.0,0.00032876,30]
[339026890,1727139040978,-500.0,0.00032876,30]
[339026891,1727139040990,-500.0,0.00032876,30]
[339026892,1727139040999,-500.0,0.00032876,30]
[339026893,1727139041009,-500.0,0.00032876,30]
[339026894,1727139041019,-500.0,0.00032876,30]
[339026895,1727139041029,-500.0,0.00032876,30]
[339026896,1727139041039,-500.0,0.00032876,30]
[339026897,1727139041049,-500.0,0.00032876,30]
[339026898,1727139041059,-500.0,0.00032876,30]
[339026899,1727139041069,-503.92,0.00032876,30]
[339026900,1727139041079,-500.0,0.00032876,30]
[339026901,1727139041089,-500.0,0.00032876,30]
[339026902,1727139041098,-502.26242152,0.00032876,30]
[339026903,1727139041108,-500.0,0.00032876,30]
[339026904,1727139041118,-500.0,0.00032876,30]
[339026905,1727139041127,-500.0,0.00032876,30]
[339026906,1727139041139,-500.0,0.00032876,30]
[339026907,1727139041148,-500.0,0.00032876,30]
[339026908,1727139041157,-500.0,0.00032876,30]
[339026909,1727139041166,-500.0,0.00032876,30]
[339026910,1727139041175,-500.0,0.00032876,30]
[339026911,1727139041184,-500.0,0.00032876,30]
[339026912,1727139041194,-500.0,0.00032876,30]
[339026913,1727139041203,-500.0,0.00032876,30]
[339026914,1727139041213,-500.0,0.00032876,30]